fUST/lending_fUST_20260624
["ID","MTS","AMOUNT","RATE_DAILY","PERIOD"]
[426280959,1782238242000,-183.19,0.00024344,7]
[426280961,1782238242000,-221.0,0.00024376,7]
[426280965,1782238242000,-292.0,0.00024391,120]
[426280963,1782238242000,-207.89,0.00024376,7]
[426280969,1782238242000,-648.98695456,0.00024391,120]
[426280972,1782238242000,-183.19,0.00024394,7]
[426280974,1782238242000,-207.89,0.00024426,7]
[426280976,1782238242000,-183.19,0.00024444,7]
[426280980,1782238242000,-183.19,0.00024494,7]
[426280956,1782238242000,-207.89,0.00024326,7]
[426280982,1782238242000,-160.0,0.00024506,3]
[426280996,1782238242000,-939.05935045,0.0002465,2]
[426280978,1782238242000,-207.89,0.00024476,7]
[426280995,1782238242000,-183.19,0.00024644,7]
[426280997,1782238242000,-520.47975707,0.0002465,2]
[426280993,1782238242000,-151.0,0.000246,9]
[426280989,1782238242000,-500.0,0.0002457,2]
[426280994,1782238242000,-207.89,0.00024626,7]
[426280988,1782238242000,-27605.08014253,0.0002457,120]
[426280987,1782238242000,-183.19,0.00024544,7]
[426280983,1782238242000,-160.0,0.00024506,5]
[426280992,1782238242000,-183.19,0.00024594,7]
[426280985,1782238242000,-207.89,0.00024526,7]
[426280990,1782238242000,-207.89,0.00024576,7]
[426281053,1782238243000,-183.55,0.00024744,7]
[426281055,1782238243000,-406.231866,0.00024761,14]
[426281054,1782238243000,-161.242588,0.00024761,14]
[426281052,1782238243000,-207.89,0.00024726,7]
[426281056,1782238243000,-207.89,0.00024776,7]
[426281058,1782238243000,-445.0,0.00024799,2]
[426281057,1782238243000,-186.0,0.00024799,2]
[426281060,1782238243000,-261.64,0.000248,30]
[426281065,1782238243000,-405.5,0.000249,2]
[426281059,1782238243000,-151.0,0.000248,30]
[426281061,1782238243000,-200.0,0.00024819,120]
[426281063,1782238243000,-200.0,0.00024827,120]
[426281064,1782238243000,-207.89,0.00024876,7]
[426281066,1782238243000,-7020.27514655,0.000249,120]
[426281067,1782238243000,-207.89,0.00024926,7]
[426281068,1782238243000,-200.0,0.0002493,120]
[426281051,1782238243000,-1915.66,0.000247,2]
[426281062,1782238243000,-207.89,0.00024826,7]
[426281047,1782238243000,-1234.54,0.000247,2]
[426281037,1782238243000,-799.0,0.00024658,2]
[426281049,1782238243000,-259.79,0.000247,2]
[426281030,1782238243000,-799.0,0.00024658,2]
[426281031,1782238243000,-799.0,0.00024658,2]
[426281032,1782238243000,-799.0,0.00024658,2]
[426281033,1782238243000,-799.0,0.00024658,2]
[426281036,1782238243000,-799.0,0.00024658,2]
[426281035,1782238243000,-799.0,0.00024658,2]
[426281034,1782238243000,-799.0,0.00024658,2]
[426281038,1782238243000,-799.0,0.00024658,2]
[426281050,1782238243000,-1918.78,0.000247,2]
[426281040,1782238243000,-799.0,0.00024658,2]
[426281041,1782238243000,-799.0,0.00024658,2]
[426281039,1782238243000,-799.0,0.00024658,2]
[426281044,1782238243000,-207.89,0.00024676,7]
[426281045,1782238243000,-183.19,0.00024694,7]
[426281043,1782238243000,-813.37946549,0.00024658,2]
[426281046,1782238243000,-1915.46,0.000247,2]
[426281069,1782238243000,-303.0,0.0002493,120]
[426281048,1782238243000,-1234.54,0.000247,2]
[426281042,1782238243000,-799.0,0.00024658,2]
[426281071,1782238243000,-207.89,0.00024976,7]
[426281097,1782238243000,-1000.0,0.00025389,10]
[426281073,1782238243000,-871.14141399,0.00025,30]
[426281098,1782238243000,-415.948529,0.00025394,14]
[426281096,1782238243000,-207.89,0.00025326,7]
[426281099,1782238243000,-360.842692,0.0002542,14]
[426281100,1782238243000,-427087.20652647,0.00025444,2]
[426281101,1782238243000,-79391.1004018,0.00025444,2]
[426281104,1782238243000,-23623.95552117,0.00025444,2]
[426281103,1782238243000,-51758.68429042,0.00025444,2]
[426281102,1782238243000,-7670.17921266,0.00025444,2]
[426281107,1782238243000,-1033.49542735,0.00024,2]
[426281106,1782238243000,-300.0,0.0002,2]
[426281105,1782238243000,-2011.03632264,0.00025444,2]
[426281108,1782238243000,-1033.0,0.00025,2]
[426281110,1782238243000,-289.79628313,0.00025444,2]
[426281109,1782238243000,-463067.83574322,0.00025444,2]
[426281111,1782238243000,-34614.09094698,0.00025444,2]
[426281113,1782238243000,-41491.41719357,0.00025444,2]
[426281112,1782238243000,-6233.7,0.00025444,2]
[426281093,1782238243000,-200.0,0.00025263,120]
[426281092,1782238243000,-207.89,0.00025226,7]
[426281095,1782238243000,-151.0,0.000253,12]
[426281094,1782238243000,-207.89,0.00025276,7]
[426281076,1782238243000,-150.0,0.00025,2]
[426281074,1782238243000,-1470.73342104,0.00025,15]
[426281075,1782238243000,-150.0,0.00025,2]
[426281070,1782238243000,-305.0,0.0002493,120]
[426281077,1782238243000,-1024.72695078,0.00025,120]
[426281078,1782238243000,-500.0,0.00025,2]
[426281079,1782238243000,-417.15472785,0.00025,120]
[426281091,1782238243000,-1590.0,0.00025205,5]
[426281080,1782238243000,-1000.0,0.00025,25]
[426281081,1782238243000,-1000.0,0.00025,5]
[426281084,1782238243000,-207.89,0.00025026,7]
[426281086,1782238243000,-207.89,0.00025076,7]
[426281085,1782238243000,-200.00400008,0.0002503,4]
[426281083,1782238243000,-978.99072397,0.00025006,2]
[426281087,1782238243000,-1562.3516492,0.00025084,2]
[426281088,1782238243000,-207.89,0.00025126,7]
[426281089,1782238243000,-207.89,0.00025176,7]
[426281090,1782238243000,-589.67385917,0.000252,5]
[426281082,1782238243000,-750.47494967,0.00025004,2]
[426281072,1782238243000,-1119.370599,0.0002498,5]
[426281117,1782238248000,-3846.58610372,0.00025444,2]
[426281116,1782238248000,-6983.32934301,0.00025444,2]
[426281115,1782238248000,-1487.46956948,0.00025444,2]
[426281114,1782238248000,-500.0,0.0002457,2]
[426281132,1782238259000,886.45055542,0.00023288,120]
[426281165,1782238970000,4125.01986418,0.00023274,30]
[426281171,1782239175000,3870.5578116,0.00023274,30]
[426281248,1782239432000,-644.45,0.00016111,10]
[426281249,1782239432000,-2055.77824913,0.00016111,10]
[426281295,1782239440000,-440.95,0.00016611,2]
[426281279,1782239440000,-500.0,0.00016611,2]
[426281277,1782239440000,-500.0,0.00016611,2]
[426281278,1782239440000,-500.0,0.00016611,2]
[426281286,1782239440000,-500.0,0.00016611,2]
[426281275,1782239440000,-500.0,0.0001661,2]
[426281285,1782239440000,-500.0,0.00016611,2]
[426281281,1782239440000,-89.85174661,0.00016611,2]
[426281283,1782239440000,-500.0,0.00016611,2]
[426281282,1782239440000,-410.14825339,0.00016611,2]
[426281288,1782239440000,-500.0,0.00016611,2]
[426281287,1782239440000,-500.0,0.00016611,2]
[426281289,1782239440000,-500.0,0.00016611,2]
[426281292,1782239440000,-500.0,0.00016611,2]
[426281291,1782239440000,-500.0,0.00016611,2]
[426281300,1782239440000,-500.0,0.00016611,2]
[426281299,1782239440000,-500.0,0.00016611,2]
[426281294,1782239440000,-500.0,0.00016611,2]
[426281276,1782239440000,-500.0,0.00016611,2]
[426281284,1782239440000,-500.0,0.00016611,2]
[426281274,1782239440000,-500.0,0.0001661,2]
[426281271,1782239440000,-218.5832592,0.0001661,2]
[426281290,1782239440000,-500.0,0.00016611,2]
[426281256,1782239440000,-500.0,0.00016438,2]
[426281255,1782239440000,-2299.77175087,0.00016111,10]
[426281258,1782239440000,-280.74,0.00016438,2]
[426281259,1782239440000,-500.0,0.00016438,2]
[426281260,1782239440000,-500.0,0.00016438,2]
[426281257,1782239440000,-500.0,0.00016438,2]
[426281261,1782239440000,-548.51450753,0.00016438,2]
[426281269,1782239440000,-500.0,0.0001661,2]
[426281262,1782239440000,-500.0,0.00016438,2]
[426281270,1782239440000,-500.0,0.0001661,2]
[426281264,1782239440000,-4083.42398038,0.0001661,2]
[426281273,1782239440000,-500.0,0.0001661,2]
[426281268,1782239440000,-500.0,0.0001661,2]
[426281263,1782239440000,-500.0,0.0001661,2]
[426281266,1782239440000,-500.0,0.0001661,2]
[426281272,1782239440000,-500.0,0.0001661,2]
[426281267,1782239440000,-500.0,0.0001661,2]
[426281265,1782239440000,-500.0,0.0001661,2]
[426281298,1782239440000,-500.0,0.00016611,2]
[426281293,1782239440000,-401.46149858,0.00016611,2]
[426281332,1782239440000,-500.0,0.00016884,2]
[426281324,1782239440000,-500.0,0.0001671,2]
[426281326,1782239440000,-500.0,0.00016712,2]
[426281328,1782239440000,-500.0,0.00016712,2]
[426281330,1782239440000,-300.0,0.00016766,2]
[426281333,1782239440000,-500.0,0.00016884,2]
[426281327,1782239440000,-500.0,0.00016712,2]
[426281329,1782239440000,-300.0,0.00016766,2]
[426281331,1782239440000,-500.0,0.00016884,2]
[426281325,1782239440000,-500.0,0.00016712,2]
[426281335,1782239440000,-500.0,0.00016884,2]
[426281334,1782239440000,-500.0,0.00016884,2]
[426281337,1782239440000,-500.0,0.00016885,2]
[426281338,1782239440000,-163.12917152,0.00016885,2]
[426281340,1782239440000,-500.0,0.00016885,2]
[426281339,1782239440000,-336.87082848,0.00016885,2]
[426281342,1782239440000,-500.0,0.00016885,2]
[426281296,1782239440000,-500.0,0.00016611,2]
[426281341,1782239440000,-500.0,0.00016885,2]
[426281336,1782239440000,-500.0,0.00016884,2]
[426281321,1782239440000,-500.0,0.0001671,2]
[426281322,1782239440000,-500.0,0.0001671,2]
[426281318,1782239440000,-500.0,0.0001671,2]
[426281297,1782239440000,-500.0,0.00016611,2]
[426281301,1782239440000,-500.0,0.00016611,2]
[426281302,1782239440000,-500.0,0.00016611,2]
[426281303,1782239440000,-500.0,0.00016611,2]
[426281304,1782239440000,-500.0,0.00016611,2]
[426281305,1782239440000,-500.0,0.00016611,2]
[426281317,1782239440000,-500.0,0.0001671,2]
[426281314,1782239440000,-500.0,0.0001671,2]
[426281313,1782239440000,-500.0,0.0001671,2]
[426281306,1782239440000,-500.0,0.00016611,2]
[426281307,1782239440000,-500.0,0.0001671,2]
[426281311,1782239440000,-500.0,0.0001671,2]
[426281308,1782239440000,-500.0,0.0001671,2]
[426281310,1782239440000,-500.0,0.0001671,2]
[426281315,1782239440000,-500.0,0.0001671,2]
[426281323,1782239440000,-500.0,0.0001671,2]
[426281320,1782239440000,-500.0,0.0001671,2]
[426281316,1782239440000,-500.0,0.0001671,2]
[426281309,1782239440000,-500.0,0.0001671,2]
[426281319,1782239440000,-500.0,0.0001671,2]
[426281367,1782239441000,-500.0,0.00016984,2]
[426281379,1782239441000,-500.0,0.00016984,2]
[426281381,1782239441000,-500.0,0.00016984,2]
[426281387,1782239441000,-500.0,0.00017159,2]
[426281374,1782239441000,-500.0,0.00016984,2]
[426281375,1782239441000,-500.0,0.00016984,2]
[426281373,1782239441000,-500.0,0.00016984,2]
[426281372,1782239441000,-500.0,0.00016984,2]
[426281380,1782239441000,-500.0,0.00016984,2]
[426281377,1782239441000,-500.0,0.00016984,2]
[426281378,1782239441000,-500.0,0.00016984,2]
[426281399,1782239441000,-380.44000851,0.00017159,2]
[426281382,1782239441000,-500.0,0.00017158,2]
[426281383,1782239441000,-500.0,0.00017158,2]
[426281386,1782239441000,-500.0,0.00017158,2]
[426281385,1782239441000,-500.0,0.00017158,2]
[426281384,1782239441000,-500.0,0.00017158,2]
[426281388,1782239441000,-500.0,0.00017159,2]
[426281389,1782239441000,-500.0,0.00017159,2]
[426281391,1782239441000,-500.0,0.00017159,2]
[426281392,1782239441000,-500.0,0.00017159,2]
[426281395,1782239441000,-500.0,0.00017159,2]
[426281397,1782239441000,-500.0,0.00017159,2]
[426281365,1782239441000,-500.0,0.00016984,2]
[426281376,1782239441000,-500.0,0.00016984,2]
[426281368,1782239441000,-343.79336589,0.00016984,2]
[426281348,1782239441000,-500.0,0.00016885,2]
[426281371,1782239441000,-500.0,0.00016984,2]
[426281343,1782239441000,-500.0,0.00016885,2]
[426281344,1782239441000,-500.0,0.00016885,2]
[426281347,1782239441000,-500.0,0.00016885,2]
[426281345,1782239441000,-500.0,0.00016885,2]
[426281349,1782239441000,-500.0,0.00016885,2]
[426281346,1782239441000,-500.0,0.00016885,2]
[426281350,1782239441000,-500.0,0.00016885,2]
[426281351,1782239441000,-500.0,0.00016885,2]
[426281353,1782239441000,-500.0,0.00016885,2]
[426281356,1782239441000,-500.0,0.00016885,2]
[426281358,1782239441000,-500.0,0.00016885,2]
[426281352,1782239441000,-500.0,0.00016885,2]
[426281357,1782239441000,-500.0,0.00016885,2]
[426281354,1782239441000,-500.0,0.00016885,2]
[426281359,1782239441000,-500.0,0.00016885,2]
[426281355,1782239441000,-500.0,0.00016885,2]
[426281360,1782239441000,-500.0,0.00016885,2]
[426281361,1782239441000,-500.0,0.00016885,2]
[426281362,1782239441000,-500.0,0.00016885,2]
[426281363,1782239441000,-500.0,0.00016885,2]
[426281366,1782239441000,-500.0,0.00016984,2]
[426281370,1782239441000,-500.0,0.00016984,2]
[426281369,1782239441000,-500.0,0.00016984,2]
[426281364,1782239441000,-500.0,0.00016885,2]
[426281394,1782239441000,-500.0,0.00017159,2]
[426281434,1782239441000,-500.0,0.00017532,2]
[426281390,1782239441000,-500.0,0.00017159,2]
[426281428,1782239441000,-500.0,0.00017433,2]
[426281429,1782239441000,-500.0,0.00017433,2]
[426281430,1782239441000,-524.88,0.00017433,2]
[426281438,1782239441000,-500.0,0.00017532,2]
[426281439,1782239441000,-500.0,0.00017532,2]
[426281427,1782239441000,-500.0,0.00017433,2]
[426281431,1782239441000,-503.4128567,0.00017532,2]
[426281433,1782239441000,-500.0,0.00017532,2]
[426281436,1782239441000,-500.0,0.00017532,2]
[426281432,1782239441000,-500.0,0.00017532,2]
[426281435,1782239441000,-500.0,0.00017532,2]
[426281437,1782239441000,-500.0,0.00017532,2]
[426281446,1782239441000,-500.0,0.00017707,2]
[426281444,1782239441000,-500.0,0.00017706,2]
[426281442,1782239441000,-500.0,0.00017532,2]
[426281440,1782239441000,-500.0,0.00017532,2]
[426281450,1782239441000,-4730.55487437,0.00017719,2]
[426281448,1782239441000,-582.80707795,0.00017718,2]
[426281443,1782239441000,-173.508458,0.0001763,2]
[426281445,1782239441000,-500.0,0.00017706,2]
[426281441,1782239441000,-500.0,0.00017532,2]
[426281449,1782239441000,-234663.23000392,0.00017719,2]
[426281447,1782239441000,-500.0,0.00017707,2]
[426281426,1782239441000,-500.0,0.00017433,2]
[426281423,1782239441000,-569.64013685,0.00017433,2]
[426281424,1782239441000,-317.25,0.00017433,2]
[426281418,1782239441000,-473.68,0.00017432,2]
[426281396,1782239441000,-500.0,0.00017159,2]
[426281400,1782239441000,-1.16731366,0.00017159,2]
[426281393,1782239441000,-500.0,0.00017159,2]
[426281403,1782239441000,-500.0,0.00017159,2]
[426281409,1782239441000,-500.0,0.00017258,2]
[426281411,1782239441000,-500.0,0.00017258,2]
[426281405,1782239441000,-500.0,0.00017159,2]
[426281402,1782239441000,-500.0,0.00017159,2]
[426281404,1782239441000,-563.1906076,0.00017159,2]
[426281406,1782239441000,-500.0,0.00017258,2]
[426281419,1782239441000,-500.0,0.00017432,2]
[426281407,1782239441000,-500.0,0.00017258,2]
[426281412,1782239441000,-500.0,0.00017258,2]
[426281410,1782239441000,-500.0,0.00017258,2]
[426281422,1782239441000,-500.0,0.00017433,2]
[426281415,1782239441000,-500.0,0.00017258,2]
[426281401,1782239441000,-500.0,0.00017159,2]
[426281414,1782239441000,-500.0,0.00017258,2]
[426281416,1782239441000,-500.0,0.00017258,2]
[426281425,1782239441000,-500.0,0.00017433,2]
[426281417,1782239441000,-500.0,0.00017258,2]
[426281420,1782239441000,-547.74,0.00017432,2]
[426281413,1782239441000,-500.0,0.00017258,2]
[426281408,1782239441000,-500.0,0.00017258,2]
[426281421,1782239441000,-500.0,0.00017432,2]
[426281398,1782239441000,-118.39267783,0.00017159,2]
[426281463,1782239446000,-974.11529211,0.00017719,2]
[426281454,1782239446000,2030.21336467,0.00023274,30]
[426281469,1782239449000,-7116.39738615,0.00017719,2]
[426281468,1782239449000,-992.40236087,0.00017542,2]
[426281472,1782239510000,-1619.42514323,0.00016444,2]
[426281473,1782239527000,-500.0,0.0001661,2]
[426281474,1782239544000,-500.0,0.0001661,2]
[426281475,1782239561000,-500.0,0.0001661,2]
[426281575,1782240632000,-631.91982043,0.00012852,2]
[426281630,1782240639000,-500.0,0.00016609,2]
[426281627,1782240639000,-259.97,0.00016609,2]
[426281631,1782240639000,-500.0,0.00016609,2]
[426281633,1782240639000,-500.0,0.00016609,2]
[426281632,1782240639000,-303.57502107,0.00016609,2]
[426281641,1782240639000,-500.0,0.00016609,2]
[426281642,1782240639000,-500.0,0.00016609,2]
[426281643,1782240639000,-500.0,0.00016609,2]
[426281636,1782240639000,-646.4,0.00016609,2]
[426281645,1782240639000,-500.0,0.00016609,2]
[426281634,1782240639000,-500.0,0.00016609,2]
[426281644,1782240639000,-500.0,0.00016609,2]
[426281637,1782240639000,-500.0,0.00016609,2]
[426281635,1782240639000,-375.2,0.00016609,2]
[426281639,1782240639000,-500.0,0.00016609,2]
[426281646,1782240639000,-500.0,0.00016609,2]
[426281640,1782240639000,-500.0,0.00016609,2]
[426281647,1782240639000,-500.0,0.0001661,2]
[426281648,1782240639000,-500.0,0.0001661,2]
[426281649,1782240639000,-500.0,0.0001661,2]
[426281653,1782240639000,-166.68452241,0.0001661,2]
[426281654,1782240639000,-500.0,0.0001661,2]
[426281650,1782240639000,-500.0,0.0001661,2]
[426281638,1782240639000,-500.0,0.00016609,2]
[426281629,1782240639000,-500.0,0.00016609,2]
[426281626,1782240639000,-500.0,0.00016609,2]
[426281625,1782240639000,-500.0,0.00016609,2]
[426281657,1782240639000,-500.0,0.0001661,2]
[426281609,1782240639000,-500.0,0.00016609,2]
[426281610,1782240639000,-179.6,0.00016609,2]
[426281606,1782240639000,-300.0,0.00016608,2]
[426281603,1782240639000,-498.15962669,0.00012982,2]
[426281602,1782240639000,-3165.09781681,0.00012852,2]
[426281605,1782240639000,-3697.30064599,0.0001651,2]
[426281607,1782240639000,-500.0,0.00016609,2]
[426281604,1782240639000,-151.0,0.00015951,2]
[426281611,1782240639000,-500.0,0.00016609,2]
[426281612,1782240639000,-323.68055183,0.00016609,2]
[426281614,1782240639000,-500.0,0.00016609,2]
[426281613,1782240639000,-500.0,0.00016609,2]
[426281617,1782240639000,-500.0,0.00016609,2]
[426281616,1782240639000,-500.0,0.00016609,2]
[426281615,1782240639000,-500.0,0.00016609,2]
[426281618,1782240639000,-500.0,0.00016609,2]
[426281622,1782240639000,-500.0,0.00016609,2]
[426281621,1782240639000,-500.0,0.00016609,2]
[426281619,1782240639000,-500.0,0.00016609,2]
[426281620,1782240639000,-500.0,0.00016609,2]
[426281623,1782240639000,-500.0,0.00016609,2]
[426281624,1782240639000,-500.0,0.00016609,2]
[426281628,1782240639000,-500.0,0.00016609,2]
[426281656,1782240639000,-500.0,0.0001661,2]
[426281608,1782240639000,-500.0,0.00016609,2]
[426281651,1782240639000,-500.0,0.0001661,2]
[426281686,1782240639000,-500.0,0.00016883,2]
[426281687,1782240639000,-500.0,0.00016883,2]
[426281688,1782240639000,-500.0,0.00016883,2]
[426281685,1782240639000,-500.0,0.00016883,2]
[426281689,1782240639000,-500.0,0.00016883,2]
[426281691,1782240639000,-500.0,0.00016883,2]
[426281693,1782240639000,-352.72,0.00016883,2]
[426281692,1782240639000,-500.0,0.00016883,2]
[426281690,1782240639000,-519.68,0.00016883,2]
[426281694,1782240639000,-421.23887517,0.00016883,2]
[426281696,1782240639000,-500.0,0.00016883,2]
[426281684,1782240639000,-500.0,0.00016883,2]
[426281697,1782240639000,-500.0,0.00016883,2]
[426281705,1782240639000,-500.0,0.00016884,2]
[426281703,1782240639000,-500.0,0.00016883,2]
[426281700,1782240639000,-453.5,0.00016883,2]
[426281704,1782240639000,-500.0,0.00016883,2]
[426281698,1782240639000,-500.0,0.00016883,2]
[426281702,1782240639000,-278.79,0.00016883,2]
[426281706,1782240639000,-500.0,0.00016884,2]
[426281701,1782240639000,-500.0,0.00016883,2]
[426281708,1782240639000,-500.0,0.00016884,2]
[426281707,1782240639000,-500.0,0.00016884,2]
[426281652,1782240639000,-271.138513,0.0001661,2]
[426281695,1782240639000,-500.0,0.00016883,2]
[426281683,1782240639000,-500.0,0.00016883,2]
[426281699,1782240639000,-500.0,0.00016883,2]
[426281680,1782240639000,-280.29177302,0.00016883,2]
[426281682,1782240639000,-500.0,0.00016883,2]
[426281655,1782240639000,-500.0,0.0001661,2]
[426281665,1782240639000,-500.0,0.0001661,2]
[426281658,1782240639000,-500.0,0.0001661,2]
[426281659,1782240639000,-500.0,0.0001661,2]
[426281667,1782240639000,-500.0,0.0001661,2]
[426281666,1782240639000,-500.0,0.0001661,2]
[426281668,1782240639000,-340.63,0.0001661,2]
[426281663,1782240639000,-500.0,0.0001661,2]
[426281669,1782240639000,-410.37684992,0.0001661,2]
[426281661,1782240639000,-500.0,0.0001661,2]
[426281662,1782240639000,-500.0,0.0001661,2]
[426281660,1782240639000,-500.0,0.0001661,2]
[426281670,1782240639000,-500.0,0.0001661,2]
[426281679,1782240639000,-500.0,0.00016883,2]
[426281664,1782240639000,-500.0,0.0001661,2]
[426281681,1782240639000,-500.0,0.00016883,2]
[426281678,1782240639000,-500.0,0.00016883,2]
[426281676,1782240639000,-175.528,0.00016708,2]
[426281677,1782240639000,-500.0,0.00016883,2]
[426281674,1782240639000,-500.0,0.0001661,2]
[426281673,1782240639000,-500.0,0.0001661,2]
[426281671,1782240639000,-500.0,0.0001661,2]
[426281672,1782240639000,-500.0,0.0001661,2]
[426281675,1782240639000,-500.0,0.0001661,2]
[426281731,1782240640000,-500.0,0.00017157,2]
[426281737,1782240640000,-500.0,0.00017157,2]
[426281728,1782240640000,-500.0,0.00016884,2]
[426281736,1782240640000,-500.0,0.00017157,2]
[426281739,1782240640000,-500.0,0.00017157,2]
[426281738,1782240640000,-500.0,0.00017157,2]
[426281735,1782240640000,-500.0,0.00017157,2]
[426281740,1782240640000,-500.0,0.00017157,2]
[426281732,1782240640000,-518.13,0.00017157,2]
[426281734,1782240640000,-500.0,0.00017157,2]
[426281730,1782240640000,-500.0,0.00017157,2]
[426281741,1782240640000,-500.0,0.00017157,2]
[426281742,1782240640000,-500.0,0.00017157,2]
[426281744,1782240640000,-500.0,0.00017158,2]
[426281729,1782240640000,-500.0,0.00017157,2]
[426281743,1782240640000,-500.0,0.00017157,2]
[426281733,1782240640000,-500.0,0.00017157,2]
[426281724,1782240640000,-500.0,0.00016884,2]
[426281711,1782240640000,-500.0,0.00016884,2]
[426281727,1782240640000,-165.31738939,0.00016884,2]
[426281747,1782240640000,-500.0,0.00017158,2]
[426281714,1782240640000,-500.0,0.00016884,2]
[426281716,1782240640000,-500.0,0.00016884,2]
[426281717,1782240640000,-500.0,0.00016884,2]
[426281715,1782240640000,-500.0,0.00016884,2]
[426281712,1782240640000,-500.0,0.00016884,2]
[426281718,1782240640000,-500.0,0.00016884,2]
[426281726,1782240640000,-500.0,0.00016884,2]
[426281709,1782240640000,-500.0,0.00016884,2]
[426281710,1782240640000,-500.0,0.00016884,2]
[426281719,1782240640000,-500.0,0.00016884,2]
[426281720,1782240640000,-500.0,0.00016884,2]
[426281721,1782240640000,-500.0,0.00016884,2]
[426281725,1782240640000,-500.0,0.00016884,2]
[426281722,1782240640000,-500.0,0.00016884,2]
[426281723,1782240640000,-500.0,0.00016884,2]
[426281713,1782240640000,-500.0,0.00016884,2]
[426281752,1782240640000,-500.0,0.00017158,2]
[426281767,1782240640000,-500.0,0.00017431,2]
[426281745,1782240640000,-500.0,0.00017158,2]
[426281771,1782240640000,-500.0,0.00017432,2]
[426281773,1782240640000,-231.48,0.00017432,2]
[426281775,1782240640000,-500.0,0.00017432,2]
[426281776,1782240640000,-558.63,0.00017432,2]
[426281778,1782240640000,-500.0,0.00017432,2]
[426281779,1782240640000,-500.0,0.00017432,2]
[426281780,1782240640000,-500.0,0.00017705,2]
[426281777,1782240640000,-500.0,0.00017432,2]
[426281781,1782240640000,-500.0,0.00017705,2]
[426281749,1782240640000,-500.0,0.00017158,2]
[426281785,1782240640000,-173.508458,0.00017769,2]
[426281786,1782240640000,-8721.45777952,0.00017819,2]
[426281783,1782240640000,-487.84,0.00017705,2]
[426281789,1782240640000,-22029.57700381,0.00018,2]
[426281788,1782240640000,-413.63,0.00017979,2]
[426281782,1782240640000,-500.0,0.00017705,2]
[426281790,1782240640000,-215.82889972,0.00018861,2]
[426281772,1782240640000,-500.0,0.00017432,2]
[426281774,1782240640000,-500.0,0.00017432,2]
[426281784,1782240640000,-399.92274297,0.00017706,2]
[426281769,1782240640000,-500.0,0.00017431,2]
[426281770,1782240640000,-500.0,0.00017431,2]
[426281753,1782240640000,-500.0,0.00017158,2]
[426281746,1782240640000,-500.0,0.00017158,2]
[426281751,1782240640000,-301.9,0.00017158,2]
[426281755,1782240640000,-500.0,0.00017158,2]
[426281762,1782240640000,-500.0,0.00017158,2]
[426281763,1782240640000,-500.0,0.00017158,2]
[426281756,1782240640000,-500.0,0.00017158,2]
[426281761,1782240640000,-500.0,0.00017158,2]
[426281764,1782240640000,-500.0,0.00017158,2]
[426281765,1782240640000,-500.0,0.00017431,2]
[426281766,1782240640000,-356.14,0.00017431,2]